bitfinex/quotes_ETHUSD_20251212
["timestamp","ask_amount","ask_price","bid_price","bid_amount"]
[1765547870593,3.08380389,3242.8,3242.7,0.4705]
[1765547871698,6.16693902,3243.1,3242.7,0.4705]
[1765547871894,6.65583902,3243.1,3242.7,0.4705]
[1765547873308,6.16693902,3243.1,3242.7,0.9569]
[1765547873995,3.08342384,3243.2,3243.0,0.4705]
[1765547874171,3.08342384,3243.2,3243.1,0.4705]
[1765547874692,6.22734768,3243.2,3242.8,0.4864]
[1765547875203,6.16684768,3243.2,3242.4,1.60286668]
[1765547875408,6.19735654,3243.3,3242.5,0.51734529]
[1765547876372,0.4889,3243.2,3242.5,1.00374529]
[1765547876697,6.16693902,3243.1,3242.5,1.00374529]
[1765547881611,6.65583902,3243.1,3242.5,1.00374529]
[1765547881910,6.65583902,3243.1,3242.4,0.18987074]
[1765547882119,6.16693902,3243.1,3242.4,0.18987074]
[1765547882415,6.16731936,3242.9,3242.4,0.18987074]
[1765547883182,6.65621936,3242.9,3242.4,0.67627074]
[1765547884211,0.1565,3242.9,3242.4,0.67627074]
[1765547884380,0.6454,3242.9,3242.4,0.67627074]
[1765547884715,0.4889,3242.8,3242.4,0.67627074]
[1765547884878,0.1565,3242.9,3242.4,0.67627074]
[1765547885079,0.6454,3242.9,3242.4,0.67627074]
[1765547886800,3.08375477,3242.8,3242.4,0.18987074]
[1765547887122,3.08370819,3242.9,3242.5,0.4864]
[1765547887329,3.08370819,3242.9,3242.7,0.4705]
[1765547888219,3.08370819,3242.9,3242.7,0.9569]
[1765547888514,3.08370819,3242.9,3242.7,0.4705]
[1765547889925,3.08370819,3242.9,3242.3,0.487]
[1765547890220,3.08370819,3242.9,3242.5,0.4864]
[1765547890723,6.16741638,3242.9,3242.3,0.9734]
[1765547891016,6.65631638,3242.9,3242.4,0.4864]
[1765547892214,6.65631638,3242.9,3242.1,1.1245817]
[1765547892215,0.4889,3242.8,3242.1,0.6849]
[1765547893090,0.4889,3242.8,3242.1,0.1985]
[1765547893320,0.4889,3242.8,3242.2,0.64766017]
[1765547897121,3.57274981,3242.8,3242.2,3.73196507]
[1765547898377,3.57274981,3242.8,3242.2,0.64766017]
[1765547899132,3.57274981,3242.8,3242.2,0.16126017]
[1765547899421,3.57274981,3242.8,3242.2,3.72245965]
[1765547899622,3.57274981,3242.8,3242.3,0.39209597]
[1765547900326,3.57274981,3242.8,3242.3,0.88919597]
[1765547900516,3.57274981,3242.8,3242.4,0.4971]
[1765547901428,6.65659962,3242.8,3242.4,0.4971]
[1765547901917,6.65659962,3242.8,3242.3,0.39209597]
[1765547902227,6.65659962,3242.8,3242.3,0.88919597]
[1765547903029,0.492,3242.7,3242.3,0.39209597]
[1765547903936,0.492,3242.7,3242.3,0.88919597]
[1765547904430,0.492,3242.7,3242.3,0.39209597]
[1765547904929,6.16731936,3242.9,3242.2,0.16126017]
[1765547905226,0.492,3242.6,3242.1,0.6956]
[1765547907135,3.08404009,3242.5,3242.1,0.6956]
[1765547909325,3.08404009,3242.5,3242.2,0.4971]
[1765547910740,3.08398738,3242.6,3242.2,0.4971]
[1765547914035,3.08388925,3242.7,3242.5,0.4732]
[1765547915844,6.1677785,3242.7,3242.3,0.4971]
[1765547916016,6.1677785,3242.7,3242.0,0.92716461]
[1765547916017,6.20649742,3242.4,3242.0,0.92716461]
[1765547916342,6.20649742,3242.4,3242.0,0.001]
[1765547916343,0.4917,3242.1,3242.0,0.001]
[1765547916832,0.5494,3242.1,3242.0,0.001]
[1765547917959,3.63382059,3242.1,3242.0,0.001]
[1765547918385,4.35433521,3242.1,3242.0,0.001]
[1765547918530,10.06463263,3242.1,3242.0,0.001]
[1765547919640,10.00693263,3242.1,3242.0,0.001]
[1765547919833,4.29663521,3242.1,3242.0,0.001]
[1765547922055,4.30113521,3242.1,3242.0,0.001]
[1765547925272,3.58062059,3242.1,3242.0,0.001]
[1765547926359,3.63392059,3242.1,3242.0,0.001]
[1765547928270,3.58062059,3242.1,3242.0,0.001]
[1765547928688,3.08442059,3242.1,3242.0,0.4742]
[1765547928988,3.14182059,3242.1,3242.0,0.001]
[1765547933495,3.08432545,3242.2,3242.0,0.9358]
[1765547933795,3.08426025,3242.3,3242.1,0.4611]
[1765547934191,3.08426025,3242.3,3242.2,0.4611]
[1765547935494,3.08415523,3242.4,3242.2,0.4611]
[1765547936494,6.16831046,3242.4,3242.2,0.4611]
[1765547939211,3.08432545,3242.2,3242.0,0.001]
[1765547939416,3.08922545,3242.2,3242.0,0.001]
[1765547940517,3.08432545,3242.2,3242.1,0.4611]
[1765547940808,3.08415398,3242.4,3242.1,0.6532]
[1765547941009,3.0842752,3242.3,3242.2,0.4737]
[1765547941214,3.08415398,3242.4,3242.3,0.4611]
[1765547941514,0.545,3242.3,3242.0,0.001]
[1765547941720,5.76159742,3242.1,3242.0,0.001]
[1765547942085,7.32277271,3242.1,3242.0,0.001]
[1765547942282,13.43857413,3242.1,3242.0,0.001]
[1765547942485,14.78243154,3242.1,3242.0,0.001]
[1765547943304,12.15655471,3242.1,3242.0,0.001]
[1765547944636,17.86685213,3242.1,3242.0,0.001]
[1765547944817,12.15655471,3242.1,3242.0,0.001]
[1765547946028,12.16203028,3242.1,3242.0,0.001]
[1765547947339,12.28557343,3242.1,3242.0,0.001]
[1765547947503,18.00134642,3242.1,3242.0,0.001]
[1765547947830,12.28557343,3242.1,3242.0,0.001]
[1765547949533,5.58910044,3242.1,3242.0,0.001]
[1765547949722,11.79187343,3242.1,3242.0,0.001]
[1765547950131,12.16203028,3242.1,3242.0,0.001]
[1765547951033,11.67503028,3242.1,3242.0,0.001]
[1765547951223,12.16203028,3242.1,3242.0,0.001]
[1765547951818,11.75652628,3242.1,3242.0,0.001]
[1765547952837,11.26282628,3242.1,3242.0,0.001]
[1765547954535,11.75652628,3242.1,3242.0,0.001]
[1765547961381,0.12352484,3242.3,3242.0,0.4633]
[1765547961571,6.422,3243.6,3242.0,0.4633]
[1765547961572,0.002,3243.6,3242.5,5.71577299]
[1765547961733,0.002,3243.6,3242.3,0.405504]
[1765547961734,0.002,3243.6,3243.5,0.6496]
[1765547962066,0.002,3243.6,3243.5,1.85117265]
[1765547962267,0.002,3243.6,3243.5,2.34177265]
[1765547962569,0.002,3243.6,3243.5,2.46520867]
[1765547962764,0.002,3243.6,3243.5,2.71172954]
[1765547963067,0.002,3243.6,3243.5,1.51015689]
[1765547963234,3.5578942,3243.6,3243.2,0.1873]
[1765547963435,7.1288884,3243.6,3243.2,0.1873]
[1765547963754,7.1288884,3243.6,3243.2,0.6779]
[1765547964252,4.0458942,3243.6,3243.2,0.6779]
[1765547965265,7.1288884,3243.6,3243.2,0.6779]
[1765547966283,4.0458942,3243.6,3243.2,0.6779]
[1765547966850,7.1288884,3243.6,3243.2,0.6779]
[1765547967180,4.0458942,3243.6,3243.2,0.6779]
[1765547967772,7.1288884,3243.6,3243.2,0.6779]
[1765547968577,4.0458942,3243.6,3243.2,0.6779]
[1765547968782,7.1288884,3243.6,3243.2,0.6779]
[1765547969283,7.1288884,3243.6,3243.2,0.1873]
[1765547969465,0.49,3243.6,3243.5,0.4623]
[1765547969661,3.5729942,3243.6,3243.5,0.4623]
[1765547969860,0.002,3243.6,3243.5,0.9529]
[1765547970174,0.49,3243.6,3243.5,0.9529]
[1765547970582,0.49,3243.6,3243.5,0.4623]
[1765547970762,0.9629,3243.6,3243.2,0.1873]
[1765547971159,0.9629,3243.6,3243.2,0.6779]
[1765547972291,3.08308925,3243.5,3243.2,0.6779]
[1765547972879,3.08308925,3243.5,3243.4,0.4623]
[1765547973621,6.6390785,3243.5,3243.0,0.1873]
[1765547974013,6.6390785,3243.5,3243.1,0.4906]
[1765547974324,3.55598925,3243.5,3243.1,0.4906]
[1765547974496,3.08308925,3243.5,3243.1,0.4906]
[1765547976623,6.1661785,3243.5,3243.1,0.4906]
[1765547977347,3.08308925,3243.5,3243.1,0.4906]
[1765547981145,6.1661785,3243.5,3243.0,0.1873]
[1765547981349,0.5019978,3243.4,3243.0,0.1873]
[1765547982048,0.5019978,3243.4,3243.0,0.6779]
[1765547982425,0.4712,3243.4,3243.0,0.6779]
[1765547982625,3.08325013,3243.4,3243.0,1.05406543]
[1765547983814,3.08325013,3243.4,3243.0,0.6779]
[1765547984040,3.08312251,3243.5,3243.3,0.4623]
[1765547984223,3.08312251,3243.5,3243.4,0.4623]
[1765547984939,3.08312251,3243.5,3243.4,0.9529]
[1765547985146,3.57012251,3243.5,3243.4,0.9529]
[1765547989574,3.57012251,3243.5,3243.4,0.4623]
[1765547990364,7.59804502,3243.5,3243.0,0.1873]
[1765547990671,7.59804502,3243.5,3243.0,0.6795]
[1765547990880,0.4908,3243.4,3242.6,0.4922]
[1765547991078,0.4908,3243.4,3242.7,0.35761805]
[1765547991547,6.16655874,3243.3,3242.7,0.84981805]
[1765547991753,6.16655874,3243.3,3242.7,0.4922]
[1765547991953,6.16655874,3243.3,3242.8,0.4922]
[1765547996899,6.65735874,3243.3,3242.8,0.4922]
[1765547997595,0.002,3243.6,3243.2,6.19086752]
[1765547997887,0.002,3243.7,3243.5,6.19086752]
[1765547998051,0.002,3243.7,3243.6,0.4841]
[1765547998380,0.002,3243.7,3243.6,0.9763]
[1765547998757,0.002,3243.7,3243.6,9.76606172]
[1765548007502,0.002,3243.7,3243.6,4.0592942]
[1765548007675,0.002,3243.7,3243.6,10.57284837]
[1765548008696,0.002,3243.7,3243.5,5.70676752]
[1765548008899,0.002,3243.7,3243.6,0.4841]
[1765548009067,0.002,3243.7,3243.4,6.19896752]
[1765548009265,0.454,3243.5,3243.4,5.70676752]
[1765548009468,0.454,3243.5,3243.1,5.70676752]
[1765548009698,0.1804,3243.2,3243.1,5.70676752]
[1765548010383,0.4908,3243.5,3243.1,5.70676752]
[1765548010384,0.4908,3243.5,3243.1,6.19086752]
[1765548010584,0.4928,3243.7,3243.1,6.68306752]
[1765548010890,0.002,3243.7,3243.4,5.70676752]
[1765548011078,0.488,3243.6,3243.4,5.70676752]
[1765548011900,0.488,3243.6,3243.2,0.4922]
[1765548012978,3.08308925,3243.5,3243.1,5.7054132]
[1765548013179,3.57108925,3243.5,3243.1,6.1976132]
[1765548013392,0.002,3243.7,3243.4,6.1895132]
[1765548013689,3.08489915,3243.7,3243.2,0.4922]
[1765548014278,3.08489915,3243.7,3243.3,5.7054132]
[1765548014897,3.57569915,3243.7,3243.3,5.7054132]
[1765548015290,0.002,3243.7,3243.3,6.1976132]
[1765548015605,0.4928,3243.7,3243.3,6.72632237]
[1765548015804,0.4928,3243.7,3243.3,5.7054132]
[1765548015980,0.002,3243.7,3243.3,6.1976132]
[1765548016476,0.002,3243.7,3243.3,5.7054132]
[1765548016800,0.002,3243.7,3243.6,0.4841]
[1765548017003,0.49,3243.7,3243.6,0.4841]
[1765548017202,0.49,3243.7,3243.6,6.6817132]
[1765548017393,0.49,3243.7,3243.6,7.34988452]
[1765548018407,0.002,3243.7,3243.6,7.34988452]
[1765548018809,0.002,3243.7,3243.6,6.85768452]
[1765548023606,0.4678,3243.7,3243.6,0.66817132]
[1765548023806,0.4678,3243.7,3243.4,5.7054132]
[1765548024017,0.9521,3243.7,3243.4,5.7054132]
[1765548024313,0.1804,3243.5,3243.4,5.7054132]
[1765548024610,3.26348925,3243.5,3243.4,5.7054132]
[1765548024779,3.74778925,3243.5,3243.4,5.7054132]
[1765548025615,3.74778925,3243.5,3243.1,5.7054132]
[1765548025913,0.463,3243.2,3243.1,5.7054132]
[1765548026093,0.463,3243.2,3243.1,6.27595452]
[1765548026297,3.08303366,3243.6,3243.1,6.76705452]
[1765548026501,0.488,3243.5,3243.3,0.4911]
[1765548026689,0.488,3243.5,3243.4,5.7054132]
[1765548027020,0.488,3243.5,3243.4,6.1965132]
[1765548027919,0.488,3243.5,3243.4,0.4911]
[1765548028116,3.57111694,3243.5,3243.1,6.76269775]
[1765548028291,7.12003388,3243.5,3243.1,6.27499775]
[1765548028492,0.4658,3243.2,3242.9,5.70445643]
[1765548028704,0.4658,3243.2,3242.7,3.5715023]
[1765548028996,0.488,3243.1,3242.7,3.08378695]
[1765548029293,0.488,3243.1,3242.8,3.08375194]
[1765548029492,0.488,3243.1,3242.7,0.4877]
[1765548029719,0.488,3243.1,3242.8,0.61921564]
[1765548031789,0.4658,3242.9,3242.3,5.70445643]
[1765548032113,0.4658,3242.8,3242.3,5.70445643]
[1765548032424,3.57146951,3243.1,3243.0,0.4911]
[1765548032590,3.57146951,3243.1,3242.6,5.70445643]
[1765548032795,3.57146951,3243.1,3242.7,0.4877]
[1765548035134,3.57148152,3243.1,3242.7,0.4877]
[1765548035332,7.13926304,3243.1,3242.6,6.63207201]
[1765548035739,0.4843,3243.0,3242.6,6.63207201]
[1765548036051,0.4658,3242.7,3242.6,6.63207201]
[1765548036230,1.1064,3242.7,3242.0,1.06917529]
[1765548036430,1.1064,3242.7,3242.0,0.001]
[1765548036431,0.1843,3242.5,3242.0,0.001]
[1765548036846,0.6686,3242.5,3242.0,0.001]
[1765548037345,0.6686,3242.5,3242.0,3.57320069]
[1765548037552,0.1843,3242.5,3242.1,0.84512007]
[1765548037741,0.1843,3242.5,3242.1,0.90472007]
[1765548037922,0.1843,3242.5,3242.2,0.4877]
[1765548038124,0.1843,3242.5,3242.1,0.41702007]
[1765548038318,0.1843,3242.5,3242.1,0.90472007]
[1765548038948,3.26834052,3242.5,3242.1,0.90472007]
[1765548041054,3.75264052,3242.5,3242.1,0.35742007]
[1765548041943,0.6686,3242.5,3242.1,0.35742007]
[1765548042128,0.6686,3242.5,3242.1,0.84512007]
[1765548042463,0.1843,3242.5,3242.1,0.84512007]
[1765548042855,3.08368105,3242.9,3242.4,0.4911]
[1765548043065,3.57168105,3242.9,3242.8,0.4911]
[1765548044046,7.12120282,3242.9,3242.5,6.19215643]
[1765548045347,4.03748105,3242.9,3242.5,6.19215643]
[1765548045742,7.12120282,3242.9,3242.5,6.19215643]
[1765548045929,4.03748105,3242.9,3242.5,6.19215643]
[1765548046330,7.12120282,3242.9,3242.5,6.19215643]
[1765548046556,4.03748105,3242.9,3242.5,6.19215643]
[1765548047264,7.12120282,3242.9,3242.5,6.19215643]
[1765548047764,7.60550282,3242.9,3242.2,6.5852175]
[1765548047935,7.60550282,3242.9,3242.3,1.00866166]
[1765548048128,7.75810282,3242.9,3242.3,1.49636166]
[1765548048327,7.75810282,3242.9,3242.3,1.00866166]
[1765548048534,0.4843,3242.8,3242.2,5.70445643]
[1765548049575,0.4516,3242.3,3242.1,6.06558694]
[1765548049777,6.16769974,3242.7,3242.1,6.06558694]
[1765548050072,6.65729974,3242.7,3242.2,0.4527]
[1765548050271,3.57344987,3242.7,3242.2,0.4527]
[1765548050581,0.488,3242.6,3242.2,1.15369869]
[1765548050782,0.488,3242.6,3242.2,1.64439869]
[1765548052496,0.9776,3242.6,3242.2,1.15369869]
[1765548056197,4.06158842,3242.6,3242.2,1.15369869]
[1765548056498,4.06158842,3242.6,3242.0,0.001]
[1765548056499,0.4516,3242.3,3242.0,0.001]
[1765548056701,0.488,3242.6,3242.1,0.5633]
[1765548056888,0.488,3242.6,3242.4,0.4527]
[1765548058004,3.08389466,3242.7,3242.5,0.4527]
[1765548058005,0.488,3242.7,3242.5,0.4527]
[1765548058702,0.488,3242.7,3242.3,5.70816687]
[1765548059278,0.488,3242.7,3242.3,6.19886687]
[1765548059601,0.488,3242.6,3242.3,6.19886687]
[1765548060380,0.488,3242.6,3242.5,0.4527]
[1765548060583,0.6791,3243.2,3242.5,1.45711982]
[1765548060893,0.6791,3243.2,3242.6,5.70816687]
[1765548060894,0.488,3243.1,3242.6,5.70816687]
[1765548061298,3.66356454,3243.5,3243.0,0.4527]
[1765548061490,0.488,3243.4,3243.1,0.4527]
[1765548061689,3.0829942,3243.6,3243.0,0.4907]
[1765548062003,0.4916,3243.8,3243.0,0.4907]
[1765548062004,0.002,3243.8,3243.5,0.4527]
[1765548062708,0.002,3243.8,3243.6,0.4527]
[1765548063702,0.002,3243.8,3243.6,0.9434]
[1765548065821,0.002,3243.8,3243.6,4.0263942]
[1765548066022,0.002,3243.8,3243.6,0.9434]
[1765548066221,0.002,3243.8,3243.6,4.99986099]
[1765548067015,0.002,3243.8,3243.6,1.91686679]
[1765548067220,0.002,3243.8,3243.6,1.42616679]
[1765548067397,0.9432,3243.7,3243.1,3.2068658]
[1765548067593,0.0875,3243.5,3243.1,3.08343473]
[1765548068702,0.4516,3243.2,3243.0,0.61988669]
[1765548068901,0.581,3243.1,3242.7,3.08384501]
[1765548069419,0.581,3243.1,3242.6,3.08390332]
[1765548069624,0.0914,3243.1,3242.6,3.08390332]
[1765548069791,0.0914,3243.1,3242.6,3.57460332]
[1765548070408,0.0914,3243.1,3242.7,3.0838487]
[1765548070619,0.0914,3243.1,3242.8,0.35745487]
[1765548072421,3.57140123,3243.2,3243.0,0.4527]
[1765548072728,0.488,3243.2,3243.1,0.4527]
[1765548073099,0.488,3243.2,3243.1,0.9434]
[1765548073420,0.488,3243.2,3243.1,0.4527]
[1765548074003,0.488,3243.2,3242.8,9.14933271]
[1765548074004,0.9396,3243.2,3242.8,0.35745487]
[1765548074311,0.9396,3243.2,3242.8,3.08372314]
[1765548074717,4.02298066,3243.2,3242.8,0.4907]
[1765548075423,3.53498066,3243.2,3242.8,0.4907]
[1765548075614,3.08338066,3243.2,3242.5,0.4907]
[1765548075915,3.08338066,3243.2,3242.6,9.28277034]
[1765548076103,3.08338066,3243.2,3242.7,4.32051216]
[1765548076309,3.08338066,3243.2,3242.7,4.81121216]
[1765548076493,3.08338066,3243.2,3242.8,0.4907]
[1765548077198,3.56898066,3243.2,3242.7,1.23668075]
[1765548077708,0.487,3243.1,3242.7,4.79682838]
[1765548077916,0.487,3243.1,3242.8,1.52679953]
[1765548079335,0.487,3243.1,3243.0,0.4952]
[1765548080733,4.02216951,3243.1,3242.6,8.7920648]
[1765548081033,4.02216951,3243.1,3242.6,9.2855648]
[1765548081546,4.50876951,3243.1,3242.6,0.4935]
[1765548081746,0.4517,3242.7,3242.4,0.58047529]
[1765548081923,0.4517,3242.7,3242.5,0.62886422]
[1765548082726,0.4517,3242.7,3242.5,3.71287205]
[1765548082928,0.0903,3242.9,3242.5,3.71287205]
[1765548083135,0.5769,3242.9,3242.5,3.71289798]
[1765548083334,0.5769,3242.9,3242.5,0.62886422]
[1765548083508,0.5769,3242.9,3242.5,3.71285408]
[1765548084032,0.487,3243.0,3242.8,0.4886]
[1765548084219,0.487,3243.0,3242.9,0.4886]
[1765548084542,0.487,3243.0,3242.6,0.92283294]
[1765548085141,0.9736,3243.0,3242.6,0.42933294]
[1765548085513,0.487,3243.0,3242.9,0.4886]
[1765548085954,0.487,3243.0,3242.7,0.4935]
[1765548086323,0.487,3243.0,3242.6,3.51327273]
[1765548086528,0.487,3243.0,3242.6,0.92283294]
[1765548086729,0.4517,3242.7,3242.4,3.66455714]
[1765548087130,0.4517,3242.7,3242.5,3.08403241]
[1765548087962,3.57059641,3243.0,3242.6,7.16454484]
[1765548087963,0.487,3243.0,3242.6,7.16454484]
[1765548088158,0.487,3243.0,3242.8,0.4886]
[1765548088830,0.487,3243.0,3242.6,6.67594484]
[1765548090071,0.487,3243.0,3242.6,6.18244484]
[1765548090365,0.9736,3243.0,3242.6,6.18244484]
[1765548091364,0.4866,3243.0,3242.6,6.18244484]
[1765548091566,0.9736,3243.0,3242.6,6.18244484]
[1765548091858,4.05716501,3243.0,3242.6,6.18244484]
[1765548092064,0.4517,3242.7,3242.6,6.18244484]
[1765548092360,0.4517,3242.7,3242.6,7.16714928]
[1765548093570,0.9383,3242.7,3242.6,6.18244484]
[1765548094983,0.4517,3242.7,3242.6,6.18244484]
[1765548099804,0.4517,3242.7,3242.4,3.66456485]
[1765548101095,0.4517,3242.7,3242.5,3.08403751]
[1765548103303,0.4517,3242.7,3242.4,3.66457173]
[1765548103482,0.4517,3242.7,3242.5,1.29312379]
[1765548104002,0.6836,3242.9,3242.6,0.4886]
[1765548104507,0.197,3242.9,3242.5,1.29312379]
[1765548104799,0.4866,3242.8,3242.5,1.29312379]
[1765548106098,0.9736,3242.8,3242.5,1.29312379]
[1765548106599,0.9736,3242.8,3242.5,4.37715971]
[1765548106902,0.9736,3242.8,3242.5,1.29312379]
[1765548108481,0.487,3243.1,3242.7,0.4886]
[1765548108681,0.4866,3243.3,3242.9,6.18244484]
[1765548108916,0.487,3243.2,3242.9,6.18244484]
[1765548109612,0.487,3243.2,3242.9,6.65974484]
[1765548110111,0.487,3243.2,3242.9,6.18244484]
[1765548111611,0.487,3243.2,3242.9,6.65974484]
[1765548111811,0.487,3243.2,3242.6,0.49576859]
[1765548112019,3.570379,3243.2,3242.8,6.18244484]
[1765548113316,3.570379,3243.2,3242.8,6.65974484]
[1765548113491,3.570379,3243.2,3242.8,9.74347369]
[1765548113492,0.487,3243.2,3242.8,9.74347369]
[1765548113688,0.487,3243.3,3243.1,0.4515]
[1765548116216,3.57029948,3243.3,3243.1,0.4515]
[1765548117720,3.57029948,3243.3,3242.9,0.4773]
[1765548118035,4.02729948,3243.3,3242.9,0.4773]
[1765548118330,0.457,3243.2,3242.8,6.18175991]
[1765548119733,0.457,3243.2,3242.8,6.65905991]
[1765548119934,0.457,3243.2,3242.8,7.63335561]
[1765548120331,3.5403905,3243.2,3242.8,7.63335561]
[1765548122617,0.4935,3242.9,3242.8,7.15605561]
[1765548123208,0.457,3243.1,3242.8,7.60755561]
[1765548123922,3.0833905,3243.2,3242.8,8.08485561]
[1765548126450,4.02730069,3243.3,3242.8,11.16860039]
[1765548126957,4.02730069,3243.3,3242.8,8.08485561]
[1765548127125,4.02730069,3243.3,3242.8,7.60755561]
[1765548127455,4.02730069,3243.3,3242.9,0.4773]
[1765548128142,4.02730069,3243.3,3240.1,2.50747493]
[1765548128143,0.4935,3243.0,3242.2,3.0842673]
[1765548128325,0.5578,3242.9,3242.2,3.0842673]
[1765548128528,3.08301325,3243.6,3242.0,6.18275991]
[1765548128529,0.58047529,3243.6,3242.6,6.18175991]
[1765548128750,0.944,3243.5,3242.6,6.18175991]
[1765548129044,0.944,3243.5,3242.7,0.4773]
[1765548129248,1.22604637,3243.4,3242.7,0.4773]
[1765548129753,0.457,3243.3,3242.7,0.4773]
[1765548130350,0.4935,3242.8,3242.6,6.18175991]
[1765548133854,0.487,3243.0,3242.7,0.4515]
[1765548134435,0.487,3243.0,3242.9,0.4515]
[1765548134644,3.57018431,3243.4,3242.9,6.63325991]
[1765548134951,3.57018431,3243.4,3243.1,0.4515]
[1765548136160,4.02718431,3243.4,3243.1,0.4515]
[1765548136540,7.11036862,3243.4,3243.1,0.4515]
[1765548137068,0.4935,3243.2,3242.6,9.26565847]
[1765548137364,0.4935,3243.2,3242.7,1.28269697]
[1765548137743,0.4935,3243.2,3242.8,0.4665]
[1765548137943,0.4935,3243.2,3242.7,1.28269697]
[1765548138261,0.4935,3243.2,3242.4,3.57106995]
[1765548138262,0.4644,3242.8,3242.4,3.57106995]
[1765548138466,0.4644,3242.8,3242.5,3.08400712]
[1765548138642,0.4644,3242.8,3242.5,3.55050712]
[1765548138957,0.4644,3242.8,3242.5,0.4665]
[1765548139158,0.4644,3242.8,3242.3,9.26594529]
[1765548139331,0.4571,3242.7,3242.4,0.97324453]
[1765548139940,0.6708,3242.9,3242.4,0.97324453]
[1765548140141,0.4718,3242.8,3242.4,0.97324453]
[1765548140461,0.4646,3242.5,3242.4,0.97324453]
[1765548140762,0.4646,3242.5,3242.2,6.18175991]
[1765548141151,0.4646,3242.5,3242.3,3.08422163]
[1765548141350,3.08380983,3242.8,3242.4,0.467]
[1765548141554,3.55560983,3242.8,3242.4,0.467]
[1765548144184,3.08370242,3242.9,3242.7,0.467]
[1765548144588,3.08370242,3242.9,3242.5,0.4584]
[1765548144788,3.55550242,3242.9,3242.5,0.4584]
[1765548146089,3.08370242,3242.9,3242.5,0.4584]
[1765548146289,3.55550242,3242.9,3242.5,0.4584]
[1765548149180,3.08370242,3242.9,3242.5,0.4584]
[1765548149910,3.5705975,3243.0,3242.5,0.4584]
[1765548150063,4.0423975,3243.0,3242.5,0.4584]
[1765548153300,7.125995,3243.0,3242.5,0.4584]
[1765548153483,0.4718,3242.9,3242.5,0.4584]
[1765548155495,3.08375477,3242.8,3242.3,3.08418615]
[1765548155700,3.08375477,3242.8,3242.3,3.54258615]
[1765548155897,3.55555477,3242.8,3242.3,4.37245992]
[1765548156207,3.55555477,3242.8,3242.4,0.4584]
[1765548156574,0.4646,3242.5,3242.0,0.001]
[1765548156776,0.095,3242.4,3242.1,3.08436651]
[1765548156976,0.095,3242.4,3242.1,3.75016111]
[1765548157277,0.487,3243.0,3242.3,0.467]
[1765548157483,3.08365968,3242.9,3242.5,0.467]
[1765548157885,3.08365968,3242.9,3242.5,0.9254]
[1765548161277,3.08365968,3242.9,3242.6,0.92603596]
[1765548162479,6.63911936,3242.9,3242.6,0.92603596]
[1765548162679,0.4646,3242.7,3242.6,0.92603596]
[1765548162886,0.4646,3242.7,3242.3,0.4584]
[1765548163202,0.4646,3242.4,3242.1,0.6657946]
[1765548163500,0.4609,3242.2,3242.1,1.59195921]
[1765548163703,0.9479,3242.2,3242.1,0.92616461]
[1765548163918,0.9479,3242.2,3242.0,0.001]
[1765548163919,1.4197,3242.2,3242.0,0.001]
[1765548164107,0.5705,3242.1,3242.0,0.001]
[1765548164480,3.65492059,3242.1,3242.0,0.001]
[1765548164679,4.37754501,3242.1,3242.0,0.001]
[1765548167186,0.5705,3242.1,3242.0,0.001]
[1765548167390,1.0575,3242.1,3242.0,0.001]
[1765548167589,4.14192059,3242.1,3242.0,0.001]
[1765548168188,3.65492059,3242.1,3242.0,0.001]
[1765548168389,4.14192059,3242.1,3242.0,0.001]
[1765548168705,0.0987,3242.1,3242.0,0.468]
[1765548169004,4.03602059,3242.1,3242.0,0.001]
[1765548169384,4.50782059,3242.1,3242.0,0.001]
[1765548171410,4.03602059,3242.1,3242.0,0.001]
[1765548172285,4.53362059,3242.1,3242.0,0.001]
[1765548174409,0.487,3242.1,3242.0,0.4552]
[1765548174711,4.02382059,3242.1,3242.0,0.001]
[1765548174879,3.53682059,3242.1,3242.0,0.001]
[1765548175909,4.03442059,3242.1,3242.0,0.001]
[1765548179408,4.80744583,3242.1,3242.0,0.001]
[1765548181303,4.79704583,3242.1,3242.0,0.001]
[1765548182218,4.82784363,3242.1,3242.0,0.001]
[1765548182405,5.40831892,3242.1,3242.0,0.001]
[1765548182814,5.81382292,3242.1,3242.0,0.001]
[1765548183006,5.9065511,3242.1,3242.0,0.001]
[1765548187807,4.5614471,3242.1,3242.0,0.001]
[1765548188013,4.15189588,3242.1,3242.0,0.001]
[1765548188200,4.03162059,3242.1,3242.0,0.001]
[1765548188395,4.51882059,3242.1,3242.0,0.001]
[1765548192239,5.6283312,3242.1,3242.0,0.001]
[1765548199412,9.862506,3242.1,3242.0,0.001]
[1765548199613,11.7453335,3242.1,3242.0,0.001]
[1765548200118,37.5419565,3242.1,3242.0,0.001]
[1765548202735,37.1717875,3242.1,3242.0,0.001]
[1765548203139,37.1716025,3242.1,3242.0,0.001]
[1765548204145,7.5419565,3242.1,3242.0,0.001]
[1765548204328,37.5419565,3242.1,3242.0,0.001]
[1765548207242,7.5419565,3242.1,3242.0,0.001]
[1765548207544,37.5419565,3242.1,3242.0,0.001]
[1765548208245,7.5419565,3242.1,3242.0,0.001]
[1765548208449,0.405504,3241.5,3240.8,0.001]
[1765548208649,8.12219852,3241.4,3240.8,0.001]
[1765548208842,8.09140072,3241.4,3240.8,0.001]
[1765548209040,8.54490072,3241.4,3240.8,0.001]
[1765548209242,8.66847364,3241.4,3240.8,0.001]
[1765548209546,12.06924037,3241.4,3240.8,0.001]
[1765548209923,12.0746263,3241.4,3240.8,0.001]
[1765548210126,42.0746263,3241.4,3240.8,0.001]
[1765548212122,12.0746263,3241.4,3240.8,0.001]
[1765548212324,39.2081503,3241.4,3240.8,0.001]
[1765548213353,4.93931894,3241.4,3240.8,0.001]
[1765548213566,4.10481494,3241.4,3241.3,0.4952]
[1765548213853,4.10481494,3241.4,3241.3,0.001]
[1765548213854,5.94961894,3241.4,3241.3,0.001]
[1765548214054,11.6909263,3241.4,3241.3,0.001]
[1765548214356,12.1444263,3241.4,3241.3,0.001]
[1765548215258,11.11045101,3241.4,3241.3,0.001]